{"text_format":"3","workbook":"xlsx","n_sheets":1,"sheets":["Bidder's respond (3)"],"not_rendered":{"defined_names":1},"read":"whole","date_system":"1900"}

{"sheet":"Bidder's respond (3)","index":0,"n_rows":210,"n_cols":6,"rows_kept":210,"merged":[[5,0,5,3],[58,0,58,3],[70,0,70,3],[82,0,82,3],[135,0,135,3],[171,0,171,3]]}
[null,"22-DES-ITBPW-484"]
[null,"WATER MAIN REPLACEMENT",null,"COMPLETE THE PRICING SHEET PROVIDED WITH THE BID DOCUMENTS AS ATTACHMENT A TO ITB NO. 22-DES-ITBPW-484 AND SUBMIT IT WITH YOUR BID. "]
[null,"ATTACHMENT A - PRICING SHEET"]
[{"$nulls":3},"FAILURE TO SUBMIT THE PRICING SHEET WITH THE BID WILL DEEM THE BIDDER NONRESPONSIVE."]
[]
["TABLE A: WATER MAIN WORK (INCLUDING ALL MATERIALS)",{"$nulls":3},"UNIT PRICE","EXTENDED PRICE"]
[]
["NO.","ITEM","UNIT","QTY"]
[1,"16-INCH WATER MAIN, DIP CL-52","LF",800,null,{"$f":"D9*E9","v":{"v":0,"d":"0.00"}}]
[2,"12-INCH WATER MAIN, DIP CL-52","LF",{"v":3000,"d":"3,000"},null,{"$f":"D10*E10","v":{"v":0,"d":"0.00"}}]
[3,"8-INCH WATER MAIN, DIP CL-52","LF",{"v":10000,"d":"10,000"},null,{"$f":"D11*E11","v":{"v":0,"d":"0.00"}}]
[4,"6-INCH WATER MAIN, DIP CL-53 ","LF",{"v":1000,"d":"1,000"},null,{"v":0,"d":"0.00"}]
[5,"4-INCH WATER MAIN, DIP CL-53","LF",100,null,{"v":0,"d":"0.00"}]
[6,"16-INCH GATE VALVE & VALVE BOX","EA",2,null,{"v":0,"d":"0.00"}]
[7,"16-INCH BUTTERFLY VALVE & VALVE BOX","EA",3,null,{"v":0,"d":"0.00"}]
[8,"14-INCH GATE VALVE & VALVE BOX","EA",1,null,{"v":0,"d":"0.00"}]
[9,"12-INCH GATE VALVE & VALVE BOX","EA",12,null,{"v":0,"d":"0.00"}]
[10,"8-INCH GATE VALVE & VALVE BOX","EA",70,null,{"v":0,"d":"0.00"}]
[11,"6-INCH GATE VALVE & VALVE BOX","EA",50,null,{"v":0,"d":"0.00"}]
[12,"4-INCH GATE VALVE & VALVE BOX ","EA",2,null,{"v":0,"d":"0.00"}]
[13,"CONNECT TO EXISTING 10-INCH to 16-INCH WATER MAIN","EA",12,null,{"v":0,"d":"0.00"}]
[14,"CONNECT TO EXISTING 4-INCH to 8-INCH WATER MAIN","EA",50,null,{"v":0,"d":"0.00"}]
[15,"2-INCH AIR RELEASE OR VACUUM VALVE IN CONCRETE MANHOLE FOR ALL DIAMETERS OF WATER MAINS ","EA",2,null,{"v":0,"d":"0.00"}]
[16,"REMOVE & REPLACE 16-INCH WATER MAIN","LF",100,null,{"v":0,"d":"0.00"}]
[17,"REMOVE & REPLACE 12-INCH WATER MAIN","LF",600,null,{"v":0,"d":"0.00"}]
[18,"REMOVE & REPLACE 8-INCH WATERMAIN","LF",400,null,{"v":0,"d":"0.00"}]
[19,"REMOVE & REPLACE 6-INCH WATER MAIN","LF",100,null,{"v":0,"d":"0.00"}]
[20,"REMOVE & REPLACE 4-INCH WATER MAIN","LF",100,null,{"v":0,"d":"0.00"}]
[21,"2-INCH BLOWOFF VALVE ASSEMBLY & BOX","EA",3,null,{"v":0,"d":"0.00"}]
[22,"ABANDON/REMOVE EXISTING FIRE HYDRANT","EA",30,null,{"v":0,"d":"0.00"}]
[23,"REMOVE AND RESET EXISTING FIRE HYDRANT","EA",5,null,{"v":0,"d":"0.00"}]
[24,"INSTALL NEW FIRE HYDRANT","EA",50,null,{"v":0,"d":"0.00"}]
[25,"FIRE HYDRANT VERTICAL EXTENSION","VF",20,null,{"v":0,"d":"0.00"}]
[26,"CUT & CAP 10-INCH – 16-INCH WATER MAIN","EA",12,null,{"v":0,"d":"0.00"}]
[27,"CUT & CAP 4-INCH – 8-INCH WATER MAIN","EA",50,null,{"v":0,"d":"0.00"}]
[28,"REMOVE EXISTING VALVE BOXES","EA",100,null,{"v":0,"d":"0.00"}]
[29,"2” TEMPORARY BLOW-OFF","EA ",25,null,{"v":0,"d":"0.00"}]
[30,"4-INCH TEAM INSERTION VALVE AND BOX","EA",1,null,{"v":0,"d":"0.00"}]
[31,"6-INCH TEAM INSERTION VALVE AND BOX","EA",5,null,{"v":0,"d":"0.00"}]
[32,"8-INCH TEAM INSERTION VALVE AND BOX","EA",10,null,{"v":0,"d":"0.00"}]
[33,"12-INCH TEAM INSERTION VALVE AND BOX","EA",10,null,{"v":0,"d":"0.00"}]
[34,"16-INCH EZ VALVE INSERTION VALVE AND BOX","EA",2,null,{"v":0,"d":"0.00"}]
[35,"20\" x 16\" TAP/SLEEVE, VALVE & VALVE BOX ","EA",1,null,{"v":0,"d":"0.00"}]
[36,"20\" x 12\" TAP/SLEEVE, VALVE & VALVE BOX","EA",1,null,{"v":0,"d":"0.00"}]
[37,"20\" x 8\" TAP/SLEEVE, VALVE & VALVE BOX","EA",1,null,{"v":0,"d":"0.00"}]
[38,"16\" x 16\" TAP/SLEEVE, VALVE & VALVE BOX","EA",1,null,{"v":0,"d":"0.00"}]
[39,"16\" x 12\" TAP/SLEEVE, VALVE & VALVE BOX","EA",1,null,{"v":0,"d":"0.00"}]
[40,"16\" x 8\" TAP/SLEEVE, VALVE & VALVE BOX","EA",1,null,{"v":0,"d":"0.00"}]
[41,"12\" x 12\" TAP/SLEEVE, VALVE & VALVE BOX","EA",5,null,{"v":0,"d":"0.00"}]
[42,"12\" x 8\" TAP/SLEEVE, VALVE & VALVE BOX","EA",8,null,{"v":0,"d":"0.00"}]
[43,"12\" x 6\" TAP/SLEEVE, VALVE & VALVE BOX","EA",3,null,{"v":0,"d":"0.00"}]
[44,"8\" x 8\" TAP/SLEEVE, VALVE & VALVE BOX","EA",15,null,{"v":0,"d":"0.00"}]
[45,"8\" x 6\" TAP/SLEEVE, VALVE & VALVE BOX","EA",5,null,{"v":0,"d":"0.00"}]
[46,"6\" x 6\" TAP/SLEEVE, VALVE & VALVE BOX","EA",10,null,{"v":0,"d":"0.00"}]
[47,"ABANDON EXISTING CORPORATION STOP (TO BE PERFORMED AS DIRECTED BY THE COUNTY PROJECT OFFICER)","EA",15,null,{"$f":"D55*E55","v":{"v":0,"d":"0.00"}}]
[]
[{"$nulls":4},"TOTAL TABLE A:",{"$f":"SUM(F9:F55)","v":{"v":0,"d":"0.00"}}]
[]
["TABLE B: DIRECT LABOR RATES ONLY (PRICES FOR 3/4-INCH AND 1-INCH WATER SERVICES, METERS ARE SUPPLIED BY THE COUNTY)"]
[]
["NO.","ITEM","UNIT","QTY"]
[1,"SERVICE TAPS (TAP MAIN, INSTALL COPPER TUBING, INSTALL ANGLE VALVES, CORPORATION COCK, METER BOX AND METER YOKE/METER, CONNECT TO EXISTING PRIVATE SERVICE LINE, BACKFILL AND EXCAVATION)--UP TO 1O FT.","EA",150,null,{"$f":"D62*E62","v":{"v":0,"d":"0.00"}}]
[2,"SERVICE TAPS PER ADDITIONAL LINEAR FOOT OVER 10 FT.","LF",3000,null,{"$f":"D63*E63","v":{"v":0,"d":"0.00"}}]
[3,"SERVICE RE-TAPS (TAP MAIN, INSTALL COPPER TUBING, CONNECT TO EXISTING SERVICE LINE, ABANDON CORPORATION COCK FROM EXISTING SERVICE LINE, BACKFILL AND EXCAVATION)-UP TO 10 FT.","EA",250,null,{"$f":"D64*E64","v":{"v":0,"d":"0.00"}}]
[4,"SERVICE RE-TAPS PER ADDITIONAL LINEAR FT. OVER 10 FT.","LF",300,null,{"v":0,"d":"0.00"}]
[5,"WATER METER RELOCATIONS.(INSTALL COPPER TUBING, CONNECT TO EXISTING COUNTY AND PRIVATE SERVICE LINES, PROVIDE NEW ANGLE VALVES, RELOCATE METER HOUSING AND METER YOKE, BACKFILL AND EXCAVATION)--UP TO 10 FT.","EA",10,null,{"v":0,"d":"0.00"}]
[6,"SERVICE RELOCATIONS PER ADDITIONAL LINEAR FOOT OVER 10 FT.","LF",20,null,{"v":0,"d":"0.00"}]
[]
[{"$nulls":4},"TOTAL TABLE B:",{"$f":"SUM(F62:F67)","v":{"v":0,"d":"0.00"}}]
[]
["TABLE C: DIRECT LABOR RATES ONLY (PRICES FOR 1 1/2-INCH AND 2-INCH WATER SERVICES, METERS ARE SUPPLIED BY THE COUNTY)"]
[]
["NO.","ITEM","UNIT","QTY"]
[1,"SERVICE TAPS (TAP MAIN, INSTALL COPPER TUBING, INSTALL GATE VALVES, CORPORATION COCK, METER BOX AND METER, CONNECT TO EXISTING PRIVATE SERVICE LINE, BACKFILL AND EXCAVATION)--UP TO 1O FT.","EA",15,null,{"$f":"D74*E74","v":{"v":0,"d":"0.00"}}]
[2,"SERVICE TAPS PER ADDITIONAL LINEAR FOOT OVER 10 FT.","LF",400,null,{"$f":"D75*E75","v":{"v":0,"d":"0.00"}}]
[3,"SERVICE RE-TAPS (TAP MAIN, INSTALL COPPER TUBING, CONNECT TO EXISTING SERVICE LINE, ABANDON CORPORATION COCK FROM EXISTING SERVICE LINE, BACKFILL AND EXCAVATION)--UP TO 10 FT.","EA",15,null,{"$f":"D76*E76","v":{"v":0,"d":"0.00"}}]
[4,"SERVICE RE-TAPS PER ADDITIONAL LINEAR FT. OVER 10 FT.","LF",50,null,{"v":0,"d":"0.00"}]
[5,"WATER METER RELOCATIONS.(INSTALL COPPER TUBING, CONNECT TO EXISTING COUNTY AND PRIVATE SERVICE LINES, PROVIDE NEW GATE VALVES, RELOCATE METER HOUSING AND METER, BACKFILL AND EXCAVATION)--UP TO 10 FT.","EA",10,null,{"v":0,"d":"0.00"}]
[6,"SERVICE RELOCATIONS PER ADDITIONAL LINEAR FOOT OVER 10 FT.","LF",20,null,{"v":0,"d":"0.00"}]
[]
[{"$nulls":4},"TOTAL TABLE C:",{"$f":"SUM(F74:F79)","v":{"v":0,"d":"0.00"}}]
[]
["TABLE D: RELATED WORK, INCLUDING ALL MATERIALS"]
[]
["NO.","ITEM","UNIT","QTY"]
[1,"PAVEMENT RESTORATION PER SPECS. DRAWING No. M-6.0 (PRICE INCLUDES 2-INCH SM-2A BITUMINOUS CONCRETE SURFACE, 5-INCH (MIN) BM-2 BITUMINOUS CONCRETE BASE, 6” 21-A AGGREGATE BASE AND 12” SAW CUT BENCH ON EACH SIDE OF TRENCH) ","SY",{"v":5500,"d":"5,500"},null,{"$f":"D86*E86","v":{"v":0,"d":"0.00"}}]
[2,"PAVEMENT RESTORATION, 8\" BASE ASPHALT FLUSH WITH STREET (PRICE INCLUDES 8-INCH (MIN) BM-2 BITUMINOUS CONCRETE BASE, 6” 21-A AGGREGATE BASE AND 12” SAW CUT BENCH ON EACH SIDE OF TRENCH)","SY",{"v":4000,"d":"4,000"},null,{"$f":"D87*E87","v":{"v":0,"d":"0.00"}}]
[3,"PAVEMENT RESTORATION, 2\" TEMPORARY HOT MIX FLUSH WITH STREET(ONLY TO BE PAID AS A SEPARATE ITEM WHEN DIRECTED BY THE PROJECT OFFICER)"," SY",500,null,{"$f":"D88*E88","v":{"v":0,"d":"0.00"}}]
[4,"REMOVE & REPLACE 4” CONCRETE SIDEWALK","SY",500,null,{"v":0,"d":"0.00"}]
[5,"REMOVE & REPLACE PAVERS SIDEWALK","SY",100,null,{"v":0,"d":"0.00"}]
[6,"REMOVE & REPLACE CONCRETE CURB & GUTTER","LF",500,null,{"v":0,"d":"0.00"}]
[7,"REMOVE & REPLACE CONCRETE HEADER CURB","LF",75,null,{"v":0,"d":"0.00"}]
[8,"ROCK EXCAVATION","CY",25,null,{"v":0,"d":"0.00"}]
[9,"CONCRETE PIER, CRADLE OR ENCASEMENT","CY",25,null,{"v":0,"d":"0.00"}]
[10,"SHEETING & BRACING WHEN LEFT IN PLACE","MFBM",1,null,{"v":0,"d":"0.00"}]
[11,"VDOT #57 STONE ","TON",300,null,{"v":0,"d":"0.00"}]
[12,"AGGREGATE, VDOT #21A FOR DRIVEWAY, SHOULDER, TRAILS AS DIRECTED BY PROJECT ENGINEER","TON",500,null,{"v":0,"d":"0.00"}]
[13,"SELECT BORROW","CY",500,null,{"v":0,"d":"0.00"}]
[14,"OVER EXCAVATION","CY",300,null,{"v":0,"d":"0.00"}]
[15,"TOPSOIL, SEED, FERTILIZER WITH EROSION BLANKET","SY",500,null,{"v":0,"d":"0.00"}]
[16,"STRAW BALES","LF",50,null,{"v":0,"d":"0.00"}]
[17,"SILT FENCE","LF",500,null,{"v":0,"d":"0.00"}]
[18,"SANITARY SEWER HOUSE LATERALS","LF",100,null,{"v":0,"d":"0.00"}]
[19,"INLET PROTECTION","EA",20,null,{"v":0,"d":"0.00"}]
[20,"SOD","SY",300,null,{"v":0,"d":"0.00"}]
[21,"REMOVE 8\" to 10\" REINFORCED CONCRETE PAVING","SY",100,null,{"v":0,"d":"0.00"}]
[22,"REMOVE & REPLACE 8\" to 10\" REINFORCED CONCRETE PAVING","SY",50,null,{"v":0,"d":"0.00"}]
[23,"COLD MIX ASPHALT (USE WHEN HOT MIX NOT AVAILABLE)","TON",100,null,{"v":0,"d":"0.00"}]
[24,"TEST PIT","EA",30,null,{"v":0,"d":"0.00"}]
[25,"REMOVE & REPLACE 6” CONCRETE DRIVEWAY ENTRANCE","SY",20,null,{"v":0,"d":"0.00"}]
[26,"REMOVE & REPLACE 9” CONCRETE DRIVEWAY ENTRANCE","SY",20,null,{"v":0,"d":"0.00"}]
[]
[{"$nulls":4},"TOTAL TABLE D: ",{"$f":"SUM(F86:F111)","v":{"v":0,"d":"0.00"}}]
[]
[null,"TABLE E: ESTRICTED WORK HOURS AND PROJECTS (UNDER 50 LINEAR FEET) RESTRICTED WORK HOUR AND PROJECTS (UNDER 50 LINEAR FEET)"]
[]
["NO.","ITEM","UNIT","QTY"]
[1,"16-INCH WATER MAIN, DIP CL-52","LF",100,null,{"$f":"D118*E118","v":{"v":0,"d":"0.00"}}]
[2,"12-INCH WATER MAIN, DIP CL-52","LF",100,null,{"$f":"D119*E119","v":{"v":0,"d":"0.00"}}]
[3,"8-INCH WATER MAIN, DIP CL-52","LF",200,null,{"$f":"D120*E120","v":{"v":0,"d":"0.00"}}]
[4,"6-INCH WATER MAIN, DIP CL-53 ","LF",200,null,{"v":0,"d":"0.00"}]
[5,"4-INCH WATER MAIN, DIP CL-53","LF",50,null,{"v":0,"d":"0.00"}]
[6,"REMOVE & REPLACE 16-INCH WATER MAIN ","LF",100,null,{"v":0,"d":"0.00"}]
[7,"REMOVE & REPLACE 12-INCH WATER MAIN","LF",100,null,{"v":0,"d":"0.00"}]
[8,"REMOVE & REPLACE 8-INCH WATERMAIN","LF",100,null,{"v":0,"d":"0.00"}]
[9,"REMOVE & REPLACE 6-INCH WATER MAIN","LF",100,null,{"v":0,"d":"0.00"}]
[10,"REMOVE & REPLACE 4-INCH WATER MAIN","LF",50,null,{"v":0,"d":"0.00"}]
[11,"12-INCH X 8-INCH TAP/SLEEVE, VALVE AND VALVE BOX","EA",2,null,{"v":0,"d":"0.00"}]
[12,"CUT AND CAP 4-INCH – 8-INCH WATER MAIN","EA",4,null,{"v":0,"d":"0.00"}]
[13,"SERVICE TAPS (3/4-INCH – 1-INCH) (TAP MAIN, INSTALL COPPER TUBING, CONNECT TO EXISTING SERVICE LINE, ABANDON CORPORATION COCK FROM EXISTING SERVICE LINE, BACKFILL AND EXCAVATION)--UP TO 10 FT.","EA",10,null,{"v":0,"d":"0.00"}]
[14,"CONNECT TO 4-INCH – 8-INCH WATER MAIN","EA",4,null,{"v":0,"d":"0.00"}]
[15,"PAVEMENT RESTORATION PER SPECS. DRAWING No. M-6.0 (NOTE: THIS ITEM SHALL ONLY APPLY TO RESTRICTED WORK HOUR PROJECTS)","SY",200,null,{"v":0,"d":"0.00"}]
[]
[{"$nulls":4},"TOTAL TABLE E:",{"$f":"SUM(F118:F132)","v":{"v":0,"d":"0.00"}}]
[]
["TABLE F: UNLISTED WORK EQUIPMENT AND LABOR RATES - ALL LABOR RATERS MUST BE FULLY LOADED HOURLY RATES"]
[]
["NO.","ITEM","UNIT","QTY"]
[1,"FOREMAN W/PICKUP TRUCK","HOURLY",50,null,{"$f":"D139*E139","v":{"v":0,"d":"0.00"}}]
[2,"BACKHOE W/OPERATOR","HOURLY",40,null,{"$f":"D140*E140","v":{"v":0,"d":"0.00"}}]
[3,"TANDEM/TRI-AXLE DUMP TRUCK W/DRIVER","HOURLY",50,null,{"$f":"D141*E141","v":{"v":0,"d":"0.00"}}]
[4,"SINGLE AXLE DUMP TRUCK W/DRIVER","HOURLY",40,null,{"v":0,"d":"0.00"}]
[5,"LABOR-PIPE LAYER","HOURLY",40,null,{"v":0,"d":"0.00"}]
[6,"LABOR-SKILLED","HOURLY",40,null,{"v":0,"d":"0.00"}]
[7,"LABOR-UNSKILLED","HOURLY",40,null,{"v":0,"d":"0.00"}]
[8,"FLAGMAN","HOURLY",80,null,{"v":0,"d":"0.00"}]
[9,"BOOM TRUCK WITH DRIVER/OPERATOR","HOURLY",20,null,{"v":0,"d":"0.00"}]
[10,"TRACTOR TRAILER W/DRIVER","HOURLY",20,null,{"v":0,"d":"0.00"}]
[11,"RUBBER TIRE LOADER W/OPERATOR","HOURLY",20,null,{"v":0,"d":"0.00"}]
[12,"SKID STEER LOADER W/OPERATOR","HOURLY",40,null,{"v":0,"d":"0.00"}]
[13,"TRACK EXCAVATOR W/OPERATOR (50,000 POUNDS OR LESS)(SEE BID FORM PRICING CLARIFICATIONS IN SECTION III OF THIS CONTRACT)","HOURLY",40,null,{"v":0,"d":"0.00"}]
[14,"AIR COMPRESSOR WITH TOOLS","HOURLY",20,null,{"v":0,"d":"0.00"}]
[15,"TOOL TRUCK OR TRAILER WITH TOOLS INCIDIENTAL TO WORK (SEE BID FORM PRICING CLARIFICATIONS IN SECTION III OF THIS CONTRACT)","HOURLY",40,null,{"v":0,"d":"0.00"}]
[16,"TRENCH COMPACTOR/ASPHALT ROLLER","HOURLY",20,null,{"v":0,"d":"0.00"}]
[17,"PAVEMENT BREAKER","HOURLY",20,null,{"v":0,"d":"0.00"}]
[18,"TAP MACHINE ¾-INCH – 2-INCH","DAILY",5,null,{"v":0,"d":"0.00"}]
[19,"LIGHTING WITH GENERATOR","HOURLY",10,null,{"v":0,"d":"0.00"}]
[20,"ROADWAY STEEL PLATES - EA","DAILY",20,null,{"v":0,"d":"0.00"}]
[21,"EXCAVATION TRENCH BOX – EA","DAILY",20,null,{"v":0,"d":"0.00"}]
[22,"ELECTRONIC ARROW BOARD","HOURLY",40,null,{"v":0,"d":"0.00"}]
[23,"WORK ZONE SETUP – INCLUDES SIGNS, CHANNELIZERS AND CONES","DAILY",20,null,{"v":0,"d":"0.00"}]
[24,"4-INCH TO 6-INCH DEWATERING PUMP","HOURLY",20,null,{"v":0,"d":"0.00"}]
[25,"INLET PROTECTION","EA",5,null,{"v":0,"d":"0.00"}]
[26,"STEEL TRAFFIC PLATE","DAILY",5,null,{"v":0,"d":"0.00"}]
[27,"STEEL TRAFFIC PLATE PER VDOT STD. ","DAILY",2,null,{"v":0,"d":"0.00"}]
[28,"LOWBOY EQUIPMENT TRAILER","HR",2,null,{"v":0,"d":"0.00"}]
[29,"3INCH PUMP AND ACCESSORIES","HR",2,null,{"v":0,"d":"0.00"}]
[30,"SEDIMENT BAG ","EA",2,null,{"v":0,"d":"0.00"}]
[]
[{"$nulls":4},"TOTAL TABLE F:",{"$f":"SUM(F139:F168)","v":{"v":0,"d":"0.00"}}]
[]
["TABLE G: EMERGENCY WORK EQUIPMENT AND LABOR RATES - ALL LABOR RATES MUST BE FULL LOADED HOURLY RATES","EMERGENCY WORK EQUIPMENT AND LABOR RATES – ALL LABOR RATES MUST BE FULLY LOADED HOURLY RATES"]
[]
["NO.","ITEM","UNIT","QTY"]
[1,"MOBILIZATION/DEMOBILIZATION","EA",1,null,{"$f":"D175*E175","v":{"v":0,"d":"0.00"}}]
[2,"FOREMAN W/PICKUP TRUCK","HOURLY",14,null,{"$f":"D176*E176","v":{"v":0,"d":"0.00"}}]
[3,"BACKHOE W/OPERATOR","HOURLY",12,null,{"$f":"D177*E177","v":{"v":0,"d":"0.00"}}]
[4,"TANDEM/TRI-AXLE DUMP TRUCK W/DRIVER ","HOURLY",12,null,{"v":0,"d":"0.00"}]
[5,"SINGLE AXLE DUMP TRUCK W/DRIVER ","HOURLY",10,null,{"v":0,"d":"0.00"}]
[6,"LABOR–PIPE LAYER","HOURLY",12,null,{"v":0,"d":"0.00"}]
[7,"LABOR–SKILLED","HOURLY",12,null,{"v":0,"d":"0.00"}]
[8,"LABOR–UNSKILLED","HOURLY",12,null,{"v":0,"d":"0.00"}]
[9,"FLAGMAN","HOURLY",20,null,{"v":0,"d":"0.00"}]
[10,"BOOM TRUCK WITH DRIVER/OPERATOR","HOURLY",8,null,{"v":0,"d":"0.00"}]
[11,"TRACTOR TRAILER W/DRIVER","HOURLY",10,null,{"v":0,"d":"0.00"}]
[12,"RUBBER TIRE LOADER W/OPERATOR","HOURLY",12,null,{"v":0,"d":"0.00"}]
[13,"SKID STEER LOADER W/OPERATOR","HOURLY",8,null,{"v":0,"d":"0.00"}]
[14,"TRACK EXCAVATOR W/OPERATOR (50,000 POUNDS OR LESS)(SEE BID FORM PRICING CLARIFICATIONS IN SECTION III OF THIS CONTRACT)","HOURLY",12,null,{"v":0,"d":"0.00"}]
[15,"AIR COMPRESSOR W/TOOLS","HOURLY",10,null,{"v":0,"d":"0.00"}]
[16,"TOOL TRUCK OR TRAILER WITH TOOLS INCIDIENTAL TO WORK (SEE BID FORM PRICING CLARIFICATIONS IN SECTION III OF THIS CONTRACT)","HOURLY",12,null,{"v":0,"d":"0.00"}]
[17,"TRENCH COMPACTOR/ASPHALT ROLLER","HOURLY",8,null,{"v":0,"d":"0.00"}]
[18,"PAVEMENT BREAKER","HOURLY",8,null,{"v":0,"d":"0.00"}]
[19,"TAP MACHINE ¾-INCH – 2-INCH","DAILY",1,null,{"v":0,"d":"0.00"}]
[20,"WELDING (INCLUDES ALL LABOR AND EQUIPMENT)","HOURLY",10,null,{"v":0,"d":"0.00"}]
[21,"LIGHTING WITH GENERATOR","HOURLY",12,null,{"v":0,"d":"0.00"}]
[22,"ROADWAY STEEL PLATES ","DAILY",4,null,{"v":0,"d":"0.00"}]
[23,"TRENCH BOX","DAILY",2,null,{"v":0,"d":"0.00"}]
[24,"ELECTRONIC ARROW BOARD","HOURLY",12,null,{"v":0,"d":"0.00"}]
[25,"WORK ZONE SETUP – INCLUDES SIGNS, CHANNELIZERS AND CONES","DAILY",2,null,{"v":0,"d":"0.00"}]
[26,"4-INCH – 6-INCH DEWATERING PUMP","EA",2,null,{"v":0,"d":"0.00"}]
[27,"INLET PROTECTION","EA",5,null,{"v":0,"d":"0.00"}]
[26,"STEEL TRAFFIC PLATE","DAILY",5,null,{"v":0,"d":"0.00"}]
[27,"STEEL TRAFFIC PLATE PER VDOT STD. ","DAILY",2,null,{"v":0,"d":"0.00"}]
[28,"LOWBOY EQUIPMENT TRAILER","HR",4,null,{"v":0,"d":"0.00"}]
[29,"3INCH PUMP AND ACCESSORIES ","EA",2,null,{"v":0,"d":"0.00"}]
[30,"SEDIMENT BAG ","EA",20,null,{"v":0,"d":"0.00"}]
[]
[{"$nulls":4},"TOTAL TABLE G:",{"$f":"SUM(F175:F206)","v":{"v":0,"d":"0.00"}}]
[]
[{"$nulls":4},"GRAND TOTAL TABLES A-G:",{"$f":"SUM(F57,F69,F81,F113,F134,F170,F208)","v":{"v":0,"d":"0.00"}}]